Cogmind - Beta 16 @@@ ROGUE MODE // 2025.11.18 @ 16:37:59 Player: Minty Result: Destroyed by G-50 Soldier with Heavy Laser Performance ------------- Evolutions (4) 2000 Regions Visited (10) 2000 Robots Destroyed (164) 820 Value Destroyed (6741) 6741 Prototype IDs (45) 900 Alien Tech Used (0) 0 Bonus (5155) 5155 TOTAL SCORE: 17616 Bonus ------- Triggered High Security 500 High Alert Combat Kills 2310 Follower Combat Kills 1845 Entered Garrisons 200 Aligned with FarCom 300 Cogmind --------- Core Integrity 0/850 Matter 156/300 Energy 80/100 System Corruption 0% Temperature Cool (18) Movement Core (1550) Ox30 Location -6/Factory Parts ------- > --- POWER (2) -------- (None) > --- PROPULSION (4) --- (None) > --- UTILITY (5) ------ Huge Storage Unit Experimental Terrain Scan Processor > --- WEAPON (4) ------- Cooled Proton Cannon > --- INVENTORY (25) --- Micro Nuclear Core Light Fission Core Light Fission Core Fusion Reactor Improved Particle Charger Skeleton Box Army-in-a-Box (30/30) Heavy Dispersion Rifle Heavy Dispersion Rifle Heavy Dispersion Rifle Heavy Dispersion Rifle Antimatter Cannon Peak State ------------ > --- POWER ------------ Cooled Ion Engine Cooled Ion Engine > --- PROPULSION ------- Multireflex Exoskeleton > --- UTILITY ---------- Huge Storage Unit Gravity Neutralizer Experimental Terrain Scan Processor Core Analyzer Kinecellerator > --- WEAPON ----------- Heavy Tesla Rifle Heavy Dispersion Rifle Helical Railgun Helical Railgun > --- INVENTORY -------- Micro Nuclear Core Light Fission Core Light Fission Core Fusion Reactor Improved Particle Charger Skeleton Box Army-in-a-Box Heavy Dispersion Rifle Heavy Dispersion Rifle Heavy Dispersion Rifle Cooled Proton Cannon Antimatter Cannon Mini Grenade Launcher Missile Launcher [Rating: 89] Favorites ----------- Power Cooled Ion Engine Engine Cooled Ion Engine Propulsion Light Treads Treads Light Treads Leg Aluminum Leg Hover Unit Airjet Utility Huge Storage Unit Device Kinecellerator Storage Huge Storage Unit Processor Advanced Visual Processing Unit Hackware Hacking Suite Protection Hardened Medium Armor Plating Weapon Enhanced Autogun Energy Gun Improved Medium Laser Energy Cannon Improved EM Pulse Cannon Ballistic Gun Enhanced Autogun Ballistic Cannon Assault Cannon Launcher Missile Launcher Impact Weapon Flail Piercing Weapon Heavy Pick Build | -11 -10 -9 -9 -9 -8 -8 -8 -8 -8 -6 ------- Run | Yrd Mat Mat Min Exi Min Mat Sto Gar Rec Fac Slots Evolved 8 | . . 2 . . . 2 . . . 4 Power 1 | . . . . . . . . . . 1 Propulsion 2 | . . 1 . . . 1 . . . . Utility 3 | . . 1 . . . 1 . . . 1 Weapon 2 | . . . . . . . . . . 2 Parts Attached 112 | . 5 15 3 . . 5 23 30 3 28 Power 10 | . 1 2 . . . . 2 2 . 3 Engine 10 | . 1 2 . . . . 2 2 . 3 Core . | . . . . . . . . . . . Reactor . | . . . . . . . . . . . Propulsion 30 | . . 5 2 . . 3 7 10 1 2 Treads 26 | . . 5 2 . . 3 5 10 1 . Leg 2 | . . . . . . . . . . 2 Wheel . | . . . . . . . . . . . Hover 2 | . . . . . . . 2 . . . Flight . | . . . . . . . . . . . Utility 37 | . . 4 . . . 2 6 12 2 11 Device 10 | . . . . . . 2 1 3 . 4 Storage 1 | . . 1 . . . . . . . . Processor 4 | . . 1 . . . . 1 . 1 1 Hackware 8 | . . 1 . . . . 1 . . 6 Protection 14 | . . 1 . . . . 3 9 1 . Artifact . | . . . . . . . . . . . Weapon 35 | . 4 4 1 . . . 8 6 . 12 Energy Gun 9 | . 2 2 . . . . 2 . . 3 Energy Cannon 7 | . 1 . . . . . 4 . . 2 Ballistic Gun 12 | . 1 . . . . . 2 4 . 5 Ballistic Cannon 3 | . . 2 . . . . . . . 1 Launcher 2 | . . . . . . . . 1 . 1 Special Weapon . | . . . . . . . . . . . Impact Weapon 1 | . . . 1 . . . . . . . Slashing Weapon . | . . . . . . . . . . . Piercing Weapon 1 | . . . . . . . . 1 . . Special Melee Weapon . | . . . . . . . . . . . Unidentified Prototypes 17 | . . 2 . . . . 6 . . 9 Parts Lost 53 | . 2 2 2 . . 1 4 14 1 27 Power 9 | . 1 1 . . . . 2 1 . 4 Propulsion 17 | . . 1 2 . . 1 2 5 . 6 Utility 14 | . . . . . . . . 6 1 7 Weapon 13 | . 1 . . . . . . 2 . 10 Highest Loss Streak 17 | . 1 2 2 . . 1 2 3 1 17 To Critical Strikes 1 | . . . . . . . 1 . . . Average Backups 15 | . 5 7 10 12 14 16 18 18 18 15 Power 2 | . 1 . 1 1 1 1 2 3 2 4 Propulsion 1 | . 4 1 2 2 2 4 4 . . . Utility 6 | . . 2 3 4 5 6 7 8 10 6 Weapon 4 | . . 2 3 4 5 4 4 5 5 3 Tool/Special . | . . . . . . . . . . . Unused Backups 29 | . 2 . . . . 3 13 5 . 6 Power 7 | . . . . . . . 4 . . 3 Propulsion 6 | . . . . . . . 6 . . . Utility 8 | . . . . . . . 3 3 . 2 Weapon 8 | . 2 . . . . 3 . 2 . 1 Tool/Special . | . . . . . . . . . . . Average Slot Usage (%) 96 | . 82 95 99 100 100 90 95 99 100 91 Engine 9 | . 13 11 11 11 11 9 8 9 9 12 Treads 30 | . . 31 32 33 33 30 30 35 36 22 Leg 1 | . 28 1 . . . . . . . . Device 4 | . . . . . . 5 . 5 9 10 Storage 9 | . 14 11 11 11 11 9 9 9 9 6 Processor 4 | . . 9 11 11 11 9 3 . 8 6 Hackware 4 | . . 3 11 11 11 9 13 . . . Protection 10 | . . 5 . . . . 9 20 9 5 Energy Gun 4 | . 15 13 20 22 22 11 . . . . Ballistic Gun 12 | . 9 . . . . . 12 17 18 23 Peak Build Rating 89 | . 6 21 21 29 29 33 42 43 41 89 Average Rating 35 | . 5 17 20 24 29 30 39 39 39 53 On Entrance 24 | 6 6 6 21 21 29 29 33 42 38 40 Avg Prop Armor Cover (%) 6 | . . . . . . 8 6 5 . . Naked Turns . | . . . . . . . . . . . Heaviest Build 130 | 12 13 94 94 94 94 94 111 114 109 130 Greatest Support 83 | 20 20 63 63 63 63 83 80 80 80 80 Greatest Overweight (x) 29 | . . 1 1 1 1 2 2 1 1 29 Average Overweight (x) . | . . . 1 1 1 1 1 1 1 1 Largest Inventory Capacity 25 | . 8 25 25 25 25 25 25 25 25 25 Average Capacity 22 | . 8 8 25 25 25 25 25 25 25 25 Most Carried 25 | . 8 10 11 20 20 25 25 25 25 25 Average Carried 20 | . 5 7 10 15 20 22 24 24 24 21 Final Capacity 25 | 8 8 25 25 25 25 25 25 25 25 25 Final Carried 25 | 6 7 10 11 20 20 25 24 25 25 17 Class Distribution -------------------- 36% | Scavenger-Mutant 32% | Mutant 17% | Commander-Mutant 4% | Scavenger-Gunner 4% | Commander-Gunner 3% | Scavenger-Assassin Dominant Class ---------------- Mutant | -10/Materials Mutant | -9/Materials Mutant | -9/Mines Mutant | -9/Exiles Mutant | -8/Mines Scavenger-Assassin | -8/Materials Commander-Mutant | -8/Storage Scavenger-Mutant | -8/Garrison Commander-Mutant | -8/Recycling Scavenger-Gunner | -6/Factory Resources | -11 -10 -9 -9 -9 -8 -8 -8 -8 -8 -6 ----------- Run | Yrd Mat Mat Min Exi Min Mat Sto Gar Rec Fac Matter Collected 4355 | 200 121 508 40 . . 70 721 1986 112 597 Remotely . | . . . . . . . . . . . Salvage Created 6309 | . 384 536 360 . 47 400 1382 1923 105 1172 Parts 340 | . 18 46 20 . 2 18 61 116 7 52 Haulers Intercepted 12 | . 1 3 . . . 1 5 . . 2 Recyclers Shooed 4 | . . . 1 . . 1 1 . . 1 Parts Field Recycled . | . . . . . . . . . . . Retrieved Matter . | . . . . . . . . . . . Parts Self-Destructed . | . . . . . . . . . . . Prevented . | . . . . . . . . . . . Parts Restored . | . . . . . . . . . . . Kills | -11 -10 -9 -9 -9 -8 -8 -8 -8 -8 -6 ------- Run | Yrd Mat Mat Min Exi Min Mat Sto Gar Rec Fac Combat Hostiles Destroyed 124 | . 7 15 10 . 1 5 19 47 2 18 Melee 6 | . . 1 . . . 2 1 2 . . Guns 87 | . 5 7 8 . 1 1 14 40 2 9 Cannons 11 | . . 7 . . . . 3 . . 1 AOE 14 | . 1 . . . . . . 5 . 8 Classes Destroyed 17 | . 3 5 1 . 1 . . 5 . 2 Worker 8 | . . 2 1 . . 2 2 . . 1 Builder 6 | . 1 2 . . . 1 1 . 1 . Tunneler 1 | . . . . . . . . . . 1 Hauler 12 | . 1 3 . . . 1 5 . . 2 Recycler 5 | . . . 1 . . 1 2 . . 1 Operator 3 | . . 1 . . . . 2 . . . Watcher 1 | . . 1 . . . . . . . . Swarmer 26 | . . 6 4 . . . 2 13 . 1 Saboteur 1 | . . . . . . . . . . 1 Grunt 57 | . 7 3 6 . . 3 16 17 . 5 Duelist 1 | . . . . . . . . 1 . . Protector 1 | . . . . . . . . 1 . . Sentry 19 | . . 6 . . . 1 2 7 1 2 Demolisher 3 | . . . . . . . . 1 . 2 Specialist 4 | . . . . . . . . 4 . . Hunter 12 | . . . . . 1 1 . 1 . 9 Programmer 4 | . . . . . . . . 2 1 1 Best Kill Streak 16 | . 4 7 4 . 1 3 5 6 1 16 Combat Bots Only 12 | . 3 4 4 . 1 2 5 6 1 12 Max Kills in Single Turn 4 | . 1 2 1 . 1 1 1 3 1 4 Gunslinging 1 | . . 1 . . . . . 1 . . Exploded 3 | . 1 . . . . . . 3 . 3 Melee 1 | . . 1 . . . 1 1 1 . . Uniques/NPCs Destroyed . | . . . . . . . . . . . Combat | -11 -10 -9 -9 -9 -8 -8 -8 -8 -8 -6 -------- Run | Yrd Mat Mat Min Exi Min Mat Sto Gar Rec Fac Hostile Shots Fired 1009 | . 46 116 54 . 4 11 152 317 9 300 Missed 227 | . 15 18 13 . 1 3 37 83 2 55 Hits 782 | . 31 98 41 . 3 8 115 234 7 245 Melee 8 | . . . . . . . . . . 8 Projectile 774 | . 31 98 41 . 3 8 115 234 7 237 AOE 8 | . . . . . . . . 7 . 1 Critical Strikes 26 | . . 3 2 . . . 5 11 . 5 Actively Blocked 4 | . . . . . . . . 4 . . Damage Taken 11856 | . 372 1297 484 . 51 123 1615 3414 107 4393 Core 1607 | . 22 224 105 . . . 140 240 15 861 Absorbed by Shields 202 | . . . . . . . . 14 . 188 Redirected to Shielding 449 | . . . . . . . 109 290 . 50 Regen/Repaired (Parts) 142 | . . . . . . . 142 . . . Core Remaining (%) 59 | 100 91 . . . 17 . . . 28 . Volleys Fired 456 | . 37 73 14 . 3 9 78 200 5 37 Largest 4 | . 2 2 2 . 2 1 2 2 2 4 Hottest 138 | . 100 121 121 . 121 65 138 61 56 138 Shots Fired 898 | . 67 132 24 . 6 9 141 390 10 119 Gun 779 | . 67 54 24 . 6 9 117 382 10 110 Cannon 107 | . . 78 . . . . 24 . . 5 Launcher 12 | . . . . . . . . 8 . 4 Special . | . . . . . . . . . . . Kinetic 727 | . 27 78 . . . . 116 382 10 114 Thermal 115 | . 20 54 24 . 6 9 1 . . 1 Explosive 12 | . . . . . . . . 8 . 4 Electromagnetic 44 | . 20 . . . . . 24 . . . Robot Hit Streak 25 | . 5 8 5 . 1 9 18 25 7 14 Robot Miss Streak 4 | . 2 3 3 . 3 1 4 4 2 4 Penetration Max 1 | . . . . . . . . . 1 1 Secondary Targets 21 | . . 2 1 . . . 4 12 . 2 Max Gunslinging Chain 1 | . . 1 1 . . . 1 1 . 1 Shots Hit Robots 613 | . 45 89 26 . 2 20 99 249 6 77 Core Hits 259 | . 16 28 10 . 2 6 48 91 3 55 Critical Kills 3 | . . . . . . . 2 . . 1 Critical Parts Destroyed 13 | . . . 3 . . 4 1 4 . 1 Critical Strikes 19 | . . 1 3 . . 6 3 4 . 2 Burn 2 | . . . . . . 2 . . . . Destroy 8 | . . . . . . . 2 4 . 2 Blast 1 | . . 1 . . . . . . . . Smash 8 | . . . 3 . . 4 1 . . . Melee Attacks 44 | . . . 16 . . 16 9 3 . . Impact 41 | . . . 16 . . 16 9 . . . Slashing . | . . . . . . . . . . . Piercing 3 | . . . . . . . . 3 . . Sneak Attacks 8 | . . . 1 . . 6 1 . . . Combat Hostiles 1 | . . . . . . 1 . . . . Follow-up Attacks . | . . . . . . . . . . . Damage Inflicted 15561 | . 652 2002 757 . 32 830 2425 4924 222 3717 Guns 9259 | . 566 531 209 . 32 129 1557 4151 195 1889 Cannons 2210 | . . 1436 . . . . 576 . . 198 Explosions 2289 | . 73 . . . . . 68 628 . 1520 Melee 1479 | . . . 540 . . 701 121 117 . . Ramming 324 | . 13 35 8 . . . 103 28 27 110 Kinetic 9500 | . 229 1436 . . . . 1540 4151 195 1949 Thermal 1915 | . 237 531 209 . 32 129 85 . . 692 Explosive 1594 | . . . . . . . . 628 . 966 Electromagnetic 749 | . 173 . . . . . 576 . . . Impact 1362 | . . . 540 . . 701 121 . . . Slashing . | . . . . . . . . . . . Piercing 117 | . . . . . . . . 117 . . Highest Corruption 2 | . . . . . . . . 1 2 . Average Corruption 1 | . . . . . . . . 1 1 . Corruption Purged . | . . . . . . . . . . . Corruption Blocked . | . . . . . . . . . . . Effects 21 | . . . . . . . . 9 12 . Message Errors 5 | . . . . . . . . 1 4 . Matter Fused 8 | . . . . . . . . 3 5 . Heat Flow Errors 1 | . . . . . . . . 1 . . Energy Discharges 6 | . . . . . . . . 3 3 . Alerts 1 | . . . . . . . . 1 . . Overload Shots . | . . . . . . . . . . . Overflow Damage 895 | . . 51 236 . . 340 89 70 . 109 Projectiles 150 | . . 51 . . . . 21 . . 78 Explosions 70 | . . . . . . . . 39 . 31 Melee 675 | . . . 236 . . 340 68 31 . . Knockbacks 9 | . . 3 . . . 3 . . . 3 Impact 7 | . . 1 . . . 3 . . . 3 Kinetic 2 | . . 2 . . . . . . . . Secondary . | . . . . . . . . . . . Self-Inflicted Damage 286 | . . . . . . . . 97 . 189 Shots 8 | . . . . . . . . 3 . 5 Rammed 42 | . . 6 1 . . . 18 6 2 9 Targets Rammed 48 | . 2 6 1 . . . 19 7 3 10 Kicked 3 | . 2 . . . . . . . . 1 Crushed 3 | . . . . . . . 1 1 1 . Highest Temperature 374 | . 314 327 270 . 162 28 220 304 1 374 Average Temperature 75 | . 91 102 105 . 85 11 50 52 1 106 Received Heat Transfer 3200 | . 204 435 261 . . 54 837 1017 18 374 Effects 4 | . . 1 2 . . . . 1 . . Energy Bleed 3 | . . 1 1 . . . . 1 . . Interference 1 | . . . 1 . . . . . . . Siege Activations . | . . . . . . . . . . . Martial Activations . | . . . . . . . . . . . Shielding Activations . | . . . . . . . . . . . Robots Disrupted . | . . . . . . . . . . . Combat Hostiles . | . . . . . . . . . . . Robots Corrupted 7 | . . . 2 . . 3 2 . . . Combat Hostiles 5 | . . . 2 . . 2 1 . . . Parts Fried 11 | . . . 3 . . 4 4 . . . Impact Corruptions 23 | . . . 8 . . 13 2 . . . Robots Melted 1 | . 1 . . . . . . . . . Combat Hostiles 1 | . 1 . . . . . . . . . Parts Melted 6 | . . 2 . . . . . 1 . 3 Heat Transferred 3565 | . 581 1258 481 . 74 444 87 . . 640 Parts Sabotaged . | . . . . . . . . . . . Parts Stolen . | . . . . . . . . . . . Parts Stripped . | . . . . . . . . . . . Power Chain Reactions 2 | . 1 . . . . . 1 . . . Alert | -11 -10 -9 -9 -9 -8 -8 -8 -8 -8 -6 ------- Run | Yrd Mat Mat Min Exi Min Mat Sto Gar Rec Fac Maximum Alert Level 5 | . . . . . . . 2 5 4 5 Low Security (%) 28 | . 100 100 100 . 100 100 23 . . . Level 1 5 | . . . . . . . 26 1 . . Level 2 10 | . . . . . . . 49 4 . . Level 3 14 | . . . . . . . . 17 . 64 Level 4 16 | . . . . . . . . 15 100 11 Level 5 23 | . . . . . . . . 61 . 10 High Security 1 | . . . . . . . . . . 13 Max Security . | . . . . . . . . . . . Peak Influence 3186 | . 115 170 190 . 45 50 630 3186 1440 1842 Initial 1433 | . . . 52 . . 5 . 390 1433 832 Average 1018 | . 37 88 141 . 28 12 357 1836 1331 1184 Influence Increases 7811 | . 252 458 273 . 45 157 1362 2956 220 2088 Destroy 0b10 Robot/C 3420 | . 140 300 200 . 20 100 680 980 60 940 Destroy 0b10 Robot/NC 280 | . 10 45 10 . . 25 85 15 10 80 Destroy Leader 568 | . 42 98 30 . 10 32 176 40 . 140 Allied During Kill 750 | . . . . . . . 353 22 17 358 Successful Hack 162 | . 57 4 18 . . . 18 16 23 26 Select Force Hacks 140 | . . . . . . . 30 . 110 . Disable Machine 150 | . . . . . 15 . 15 15 . 105 Anti-Garrison Action 1700 | . . . . . . . . 1700 . . Destroy Structure 296 | . 3 11 . . . . 5 138 . 139 Advance Influence 300 | . . . . . . . . . . 300 Lose Combat Pursuer 45 | . . . 15 . . . . 30 . . Influence Decreases 6047 | . 252 324 308 99 30 172 761 371 2137 1593 Entered New Map 2892 | . . . 82 99 . 10 . 211 1753 737 Time Decay 2200 | . 167 304 206 . 30 152 551 . 374 416 Lost Part 510 | . 10 20 20 . . 10 30 140 10 270 Lost Ally 370 | . . . . . . . 180 20 . 170 Purge Threat 75 | . 75 . . . . . . . . . Squads Dispatched 26 | . 3 1 1 . . . 9 . . 12 Investigation 10 | . 3 . 1 . . . 6 . . . Extermination 1 | . . . . . . . . . . 1 Reinforcement 7 | . . 1 . . . . 2 . . 4 Assault 7 | . . . . . . . . . . 7 Garrison 1 | . . . . . . . 1 . . . Intercept . | . . . . . . . . . . . Searches Triggered . | . . . . . . . . . . . Construction Impeded 2 | . . . . . . . . . . 2 Haulers Reinforced 2 | . . . . . . . . . . 2 Active Scanning Responses . | . . . . . . . . . . . Cargo Convoy Interrupts 1 | . . . . . . . . . . 1 Stealth | -11 -10 -9 -9 -9 -8 -8 -8 -8 -8 -6 --------- Run | Yrd Mat Mat Min Exi Min Mat Sto Gar Rec Fac Distress Signals 9 | . 1 2 . . . . 3 . . 3 Communications Jammed . | . . . . . . . . . . . Distress Signals . | . . . . . . . . . . . Times Spotted 212 | . 11 22 10 . 1 7 38 56 4 63 Peak Tracking Total 12 | . 3 4 3 . 1 3 5 6 2 12 Tactical Retreats 3 | . . . 1 . . . . 2 . . Traps | -11 -10 -9 -9 -9 -8 -8 -8 -8 -8 -6 ------- Run | Yrd Mat Mat Min Exi Min Mat Sto Gar Rec Fac Traps Triggered 21 | . 1 . . . . . 1 19 . . Indirectly . | . . . . . . . . . . . Trap Hack Attempts . | . . . . . . . . . . . Triggered . | . . . . . . . . . . . Disarmed . | . . . . . . . . . . . Reprogrammed . | . . . . . . . . . . . Reused . | . . . . . . . . . . . Traps Extracted . | . . . . . . . . . . . Installed . | . . . . . . . . . . . Triggered . | . . . . . . . . . . . Machines | -11 -10 -9 -9 -9 -8 -8 -8 -8 -8 -6 ---------- Run | Yrd Mat Mat Min Exi Min Mat Sto Gar Rec Fac Machines Disabled 19 | . . . . . 1 . 1 10 . 7 Max in Single Turn 2 | . . . . . 1 . 1 1 . 2 Garrison Relay 5 | . . . . . . . . 5 . . Phase Generator 1 | . . . . . . . . 1 . . Machines Repaired . | . . . . . . . . . . . Machines Dismantled . | . . . . . . . . . . . Machines Sabotaged 1 | . . . . . . . . . 1 . Overloaded Fab Kills . | . . . . . . . . . . . Hacking | -11 -10 -9 -9 -9 -8 -8 -8 -8 -8 -6 --------- Run | Yrd Mat Mat Min Exi Min Mat Sto Gar Rec Fac Machines Accessed 36 | . 7 3 1 2 . 1 11 3 6 2 Terminals 25 | . 7 3 1 . . . 7 3 4 . Fabricators 2 | . . . . . . . . . . 2 Repair Stations 2 | . . . . . . . 2 . . . Recycling Units 3 | . . . . . . . 1 . 2 . Scanalyzers 1 | . . . . . . 1 . . . . Garrison Access 1 | . . . . . . . 1 . . . Total Hacks 115 | . 26 8 3 2 . 2 31 8 22 13 Successful 66 | . 14 5 3 2 . 1 16 2 11 12 Failed 48 | . 12 3 . . . . 15 6 11 1 Catastrophic 11 | . 3 . . . . . 1 2 4 1 Database Lockouts 1 | . . . . . . 1 . . . . Manual 60 | . 23 7 3 1 . . 11 3 10 2 Terminals 86 | . 26 8 3 . . . 23 8 18 . Fabricators 13 | . . . . . . . . . . 13 Repair Stations 6 | . . . . . . . 6 . . . Recycling Units 5 | . . . . . . . 1 . 4 . Scanalyzers 2 | . . . . . . 2 . . . . Garrison Access 1 | . . . . . . . 1 . . . Terminal Hacks 27 | . 5 1 3 2 . . 8 1 7 . Record 1 | . . . . 1 . . . . . . Part Schematic 1 | . 1 . . . . . . . . . Robot Schematic 1 | . . . . . . . . . 1 . Robot Analysis 4 | . . . 2 . . . 1 . 1 . Prototype ID Bank 3 | . . . . . . . 2 . 1 . Open Door 1 | . . . . . . . 1 . . . Level Access Points 1 | . . . 1 . . . . . . . Terminal Index 2 | . 1 . . . . . 1 . . . Alert Level 4 | . 1 1 . . . . 2 . . . Unreport Threat 1 | . 1 . . . . . . . . . Maintenance Status 1 | . 1 . . . . . . . . . Patrol Status 1 | . . . . . . . . . 1 . Transport Status 1 | . . . . . . . . . 1 . Hauler Manifests 1 | . . . . . . . 1 . . . Zone Layout 2 | . . . . . . . . . 2 . Security Stations 1 | . . . . . . . . 1 . . Proto ID Catalog 1 | . . . . 1 . . . . . . Fabricator Hacks 10 | . . . . . . . . . . 10 Load Schematic 5 | . . . . . . . . . . 5 Build 5 | . . . . . . . . . . 5 Repair Station Hacks 4 | . . . . . . . 4 . . . Scan Component 2 | . . . . . . . 2 . . . Repair 2 | . . . . . . . 2 . . . Recycling Unit Hacks 1 | . . . . . . . . . 1 . Report Inventory 1 | . . . . . . . . . 1 . Scanalyzer 1 | . . . . . . 1 . . . . Retrieve Study 1 | . . . . . . 1 . . . . Garrison Access Hacks 1 | . . . . . . . 1 . . . Unlock Access 1 | . . . . . . . 1 . . . Unauthorized Hacks 22 | . 9 4 . . . . 3 1 3 2 Terminals 17 | . 9 4 . . . . 2 1 1 . Botnet 7 | . 4 1 . . . . 2 . . . Skim 8 | . 5 3 . . . . . . . . Sabotage 1 | . . . . . . . . . 1 . Override 1 | . . . . . . . . 1 . . Fabricators 2 | . . . . . . . . . . 2 Prioritize 1 | . . . . . . . . . . 1 Liberate 1 | . . . . . . . . . . 1 Repair Stations . | . . . . . . . . . . . Recycling Units 3 | . . . . . . . 1 . 2 . Tunnel 3 | . . . . . . . 1 . 2 . Scanalyzers . | . . . . . . . . . . . Garrison Access . | . . . . . . . . . . . Data Cores Recovered . | . . . . . . . . . . . Used . | . . . . . . . . . . . Hacking Detections 30 | . 7 3 1 . . 1 8 3 5 2 Full Trace Events 11 | . 1 . 1 . . . 4 2 3 . Feedback Events . | . . . . . . . . . . . Feedback Blocked . | . . . . . . . . . . . Robot Schematics Acquired 1 | . . . . . . . . . 1 . Robots Built 5 | . . . . . . . . . . 5 Authchips 5 | . . . . . . . . . . 5 Time 145 | . . . . . . . . . . 145 Total Robot Build Rating 15 | . . . . . . . . . . 15 Part Schematics Acquired 1 | . 1 . . . . . . . . . Parts Built . | . . . . . . . . . . . Authchips . | . . . . . . . . . . . Time . | . . . . . . . . . . . Total Part Build Rating . | . . . . . . . . . . . Part Studies Acquired 1 | . . . . . . 1 . . . . Parts Repaired 2 | . . . . . . . 2 . . . Time 82 | . . . . . . . 82 . . . Parts Recycled . | . . . . . . . . . . . Recycled Matter . | . . . . . . . . . . . Retrieved Matter . | . . . . . . . . . . . Retrieved Components . | . . . . . . . . . . . Parts Scanalyzed . | . . . . . . . . . . . Part Schematics Acquired . | . . . . . . . . . . . Parts Damaged . | . . . . . . . . . . . Bothacking | -11 -10 -9 -9 -9 -8 -8 -8 -8 -8 -6 ------------ Run | Yrd Mat Mat Min Exi Min Mat Sto Gar Rec Fac Used RIF Installer . | . . . . . . . . . . . Robots Hacked . | . . . . . . . . . . . Non-combat . | . . . . . . . . . . . Combat . | . . . . . . . . . . . Robot Hacks Applied . | . . . . . . . . . . . Relay Couplers Released 19 | . . . . . . . . 19 . . Machine Destruction 19 | . . . . . . . . 19 . . Fabnet Peak Effective % . | . . . . . . . . . . . Robots Rewired 13 | . . . . . . . . 3 10 . Allies Hacked 1 | . . . . . . . . . 1 . Hacks Repelled . | . . . . . . . . . . . Allies | -11 -10 -9 -9 -9 -8 -8 -8 -8 -8 -6 -------- Run | Yrd Mat Mat Min Exi Min Mat Sto Gar Rec Fac Total Allies 31 | . . . . . . . 10 3 10 8 Largest Group 14 | . . . . . . . 10 3 11 14 Highest-Rated Group 258 | . . . . . . . 173 120 171 258 Highest-Rated Ally 40 | . . . . . . . 29 40 40 40 Initial Warlord ECA Mod 11 | . . . . . . . . . 11 9 Total Orders 2 | . . . . . . . . 2 . . STAY 1 | . . . . . . . . 1 . . FOLLOW 1 | . . . . . . . . 1 . . Ally Attacks 300 | . . . . . . . 140 12 7 141 Total Damage 7456 | . . . . . . . 1724 403 166 5163 Kills 69 | . . . . . . . 20 4 2 43 Allies Corrupted . | . . . . . . . . . . . Allies Melted . | . . . . . . . . . . . Intel | -11 -10 -9 -9 -9 -8 -8 -8 -8 -8 -6 ------- Run | Yrd Mat Mat Min Exi Min Mat Sto Gar Rec Fac Active Infowar (turns) 2606 | . . 666 422 541 72 580 325 . . . Optics 2606 | . . 666 422 541 72 580 325 . . . Terrain 7 | . . . . . . 7 . . . . Structural 444 | . . . . . . 354 90 . . . Robot Analysis Total 4 | . . . 2 . . . 1 . 1 . Derelict Logs Recovered . | . . . . . . . . . . . Drone Launches . | . . . . . . . . . . . Drone Recoveries . | . . . . . . . . . . . Exploration | -11 -10 -9 -9 -9 -8 -8 -8 -8 -8 -6 ------------- Run | Yrd Mat Mat Min Exi Min Mat Sto Gar Rec Fac Turns Passed 10309 | . 525 792 422 541 72 580 1726 3599 876 1176 Spaces Moved 4021 | 1 330 340 136 225 27 196 604 1464 324 374 Core 2 | . . . . . . . . . . 2 Treads 3652 | . . 320 136 225 27 196 604 1464 324 356 Legs 367 | 1 330 20 . . . . . . . 16 Wheels . | . . . . . . . . . . . Hover . | . . . . . . . . . . . Flight . | . . . . . . . . . . . Fastest Speed 120 | 120 120 120 240 240 240 200 200 200 200 200 Average Speed 200 | 120 120 160 240 240 240 241 217 201 200 212 Slowest Speed 1500 | 120 120 240 240 240 240 320 240 216 200 1500 Overloaded Moves . | . . . . . . . . . . . Propulsion Burnouts . | . . . . . . . . . . . Robots Hopped . | . . . . . . . . . . . Potential Cave-ins . | . . . . . . . . . . . Cave-ins Triggered . | . . . . . . . . . . . Exploration Rate (%) 43 | 2 58 27 33 64 9 19 87 96 71 10 Regions Visited 10 Branch Regions 5 Pre-discovered Areas 4 | . . . . 1 . . 1 . 2 . Known Exits Taken 5 | . 1 . 1 . 1 1 1 . . . Unknown Exits Taken 4 | 1 . 1 . 1 . . . . 1 . Scrap Searched . | . . . . . . . . . . . Spaces Dug . | . . . . . . . . . . . Terrain Destroyed 236 | . 2 10 . . . . 3 180 . 41 Melee . | . . . . . . . . . . . Projectile 24 | . . 10 . . . . . . . 14 AOE 212 | . 2 . . . . . 3 180 . 27 Terrain Rammed . | . . . . . . . . . . . Walls Destroyed . | . . . . . . . . . . . Machines Disabled . | . . . . . . . . . . . Actions | -11 -10 -9 -9 -9 -8 -8 -8 -8 -8 -6 --------- Run | Yrd Mat Mat Min Exi Min Mat Sto Gar Rec Fac Total 5496 | . 391 451 182 227 29 270 891 1860 540 655 Wait 395 | . 12 . 9 . . 29 104 28 29 184 Move 4008 | . 329 339 135 224 26 195 603 1460 323 374 Hop . | . . . . . . . . . . . Pick Up 82 | . 3 11 3 3 . 9 21 18 2 12 Fast Attach 26 | . 2 2 . . . 3 7 5 . 7 Attach 44 | . 1 6 2 . . 1 4 9 1 20 Detach 8 | . 1 . . . . . 5 . . 2 Swap 74 | . 2 7 2 . . 3 18 31 2 9 Drop 62 | . 2 7 . . . 5 23 23 2 . Fire 456 | . 37 73 14 . 3 9 78 200 5 37 Melee 44 | . . . 16 . . 16 9 3 . . Ram . | . . . . . . . . . . . Kick 3 | . 2 . . . . . . . . 1 Crush 45 | . . 6 1 . . . 19 7 3 9 Escape Stasis 28 | . . . . . . . . 28 . . Rewire 221 | . . . . . . . . 48 173 . Trap . | . . . . . . . . . . . Miscellaneous . | . . . . . . . . . . . Route ------- -11/Scrapyard -10/Materials (discovered 5 exits: *Mat x3 / [*Min] / Sub) -9/Materials (discovered 2 exits: *Mat / *Min) -9/Mines (discovered 3 exits: *Mat x2 / *Exi) -9/Exiles (discovered 2 exits: [*Min x2]) -8/Mines -8/Materials (discovered 2 exits: *Sto x2) -8/Storage (discovered 2 exits: [*Fac] / Gar) -8/Garrison (discovered 3 exits: *Rec x3) -8/Recycling (discovered 2 exits: *Fac / Scr) -6/Factory (discovered 1 exit: [*Low]) History --------- Turn | Location | Event 1 | -11/Scrapyard | Discovered new exit (range 0) 1 | -11/Scrapyard | Entered Materials 2 | -10/Materials | Met a group of wandering Federalists 132 | -10/Materials | Discovered new exit (range 14) 210 | -10/Materials | Discovered new exit (range 13) 322 | -10/Materials | Discovered new exit (range 9) 333 | -10/Materials | Build established: Mutant 338 | -10/Materials | Learned location of 2 exits from Subcaves 377 | -10/Materials | Learned Storage garrison access intel 404 | -10/Materials | Identified exit to Subcaves 404 | -10/Materials | Identified exit to Materials 420 | -10/Materials | Learned 2 Mines zone layouts 428 | -10/Materials | Learned Storage trap positions 429 | -10/Materials | Learned 4 Recycling zone layouts 438 | -10/Materials | Learned Storage emergency access door positions 455 | -10/Materials | Learned location of 2 exits from Mines 526 | -10/Materials | Entered another Materials area 526 | -9/Materials | Evolved 2 slots: Propulsion x1, Utility x1 624 | -9/Materials | Discovered new exit (range 12) 1139 | -9/Materials | Core integrity fell below 50% 1147 | -9/Materials | Discovered new exit (range 17) 1318 | -9/Materials | Entered Mines 1319 | -9/Mines | Identified exit to Exiles 1319 | -9/Mines | Identified exit to Materials 1393 | -9/Mines | Core integrity fell below 20% 1728 | -9/Mines | Deemed a non-threat by the Exiles lab entrance 1740 | -9/Mines | Entered Exiles 1772 | -9/Exiles | Discovered new exit (range 18) 1805 | -9/Exiles | Met 8R-AWN 1841 | -9/Exiles | Met EX-HEX 1904 | -9/Exiles | Met EX-BIN 1947 | -9/Exiles | Aligned with FarCom system 1949 | -9/Exiles | Given EX-Vault access code 2007 | -9/Exiles | Opened EX-Vault 2021 | -9/Exiles | Found YOLO Cannon 2027 | -9/Exiles | Found Army-in-a-Box 2040 | -9/Exiles | Found Skeleton Box 2089 | -9/Exiles | Warned to stay clear of 0b10 Research branches 2156 | -9/Exiles | Met EX-DEC 2180 | -9/Exiles | Learned location of Zion (-6) 2252 | -9/Exiles | Discovered new exit (range 12) 2281 | -9/Exiles | Stole three prototypes: Skeleton Box, Army-in-a-Box, YOLO Cannon 2281 | -9/Exiles | Entered Mines 2338 | -8/Mines | Discovered exit to Materials (range 7) 2353 | -8/Mines | Entered Materials 2353 | -8/Materials | Evolved 2 slots: Propulsion x1, Utility x1 2354 | -8/Materials | Identified exit to Storage 2425 | -8/Materials | Discovered exit to Storage (range 17) 2893 | -8/Materials | Central database locked down 2906 | -8/Materials | Build established: Scavenger-Assassin 2933 | -8/Materials | Entered Storage 2934 | -8/Storage | Loaded intel: 7 trap records 2935 | -8/Storage | FarCom data flow suspended 2936 | -8/Storage | Loaded intel: 1 garrison access location 3100 | -8/Storage | Assisted by bots powering up and referring to "LRC-V3" 3139 | -8/Storage | Identified exit to Garrison 3304 | -8/Storage | Repaired Imp. EM Pulse Cannon 3324 | -8/Storage | Garrison activated, responded to threat 3345 | -8/Storage | Remotely autohacked Sealed Heavy Doors 3393 | -8/Storage | Build established: Commander-Mutant 3596 | -8/Storage | Discovered new exit (range 16) 3882 | -8/Storage | Repaired Imp. Weapon Shielding 4493 | -8/Storage | Lost 5 allies 4659 | -8/Storage | Entered Garrison 4689 | -8/Garrison | Triggered checkpoint 4739 | -8/Garrison | Build established: Mutant 4781 | -8/Garrison | Garrison Relay disabled 4837 | -8/Garrison | Triggered checkpoint 4861 | -8/Garrison | Triggered checkpoint 5102 | -8/Garrison | Discovered new exit (range 14) 5185 | -8/Garrison | Triggered checkpoint 5212 | -8/Garrison | Garrison Relay disabled 5319 | -8/Garrison | Triggered checkpoint 5408 | -8/Garrison | Build established: Scavenger-Mutant 5427 | -8/Garrison | Triggered checkpoint 5492 | -8/Garrison | Garrison Relay disabled 5648 | -8/Garrison | Discovered new exit (range 10) 5903 | -8/Garrison | Triggered checkpoint 5951 | -8/Garrison | Phase Generator disabled 6019 | -8/Garrison | Triggered checkpoint 6019 | -8/Garrison | Garrison Relay disabled 6260 | -8/Garrison | Core integrity fell below 50% 6287 | -8/Garrison | Lost 3 parts (1n2w) 6405 | -8/Garrison | Triggered checkpoint 6570 | -8/Garrison | Discovered new exit (range 12) 6582 | -8/Garrison | Learned Recycling security intel 7044 | -8/Garrison | Garrison Relay disabled 8258 | -8/Garrison | Entered Recycling 8258 | -8/Recycling | Accompanied by 1 ally 8259 | -8/Recycling | Identified exit to Scraptown 8745 | -8/Recycling | Build established: Commander-Mutant 9015 | -8/Recycling | Discovered new exit (range 16) 9134 | -8/Recycling | Entered Factory 9134 | -6/Factory | Accompanied by 11 allies 9134 | -6/Factory | Evolved 4 slots: Power x1, Utility x1, Weapon x2 9167 | -6/Factory | Discovered new exit (range 15) 9345 | -6/Factory | Lost 3 allies 9460 | -6/Factory | Build established: Commander-Gunner 9526 | -6/Factory | Lost 3 allies 9751 | -6/Factory | Fabricated D-53 Grenadier (x1) 9772 | -6/Factory | Build established: Scavenger-Gunner 9781 | -6/Factory | Fabricated D-53 Grenadier (x1) 9811 | -6/Factory | Fabricated D-53 Grenadier (x1) 9834 | -6/Factory | First assault squad dispatched 9840 | -6/Factory | Fabricated D-53 Grenadier (x1) 9869 | -6/Factory | Fabricated D-53 Grenadier (x1) 10010 | -6/Factory | Lost 4 allies 10082 | -6/Factory | Lost 4 allies 10144 | -6/Factory | Cargo convoy interrupted 10150 | -6/Factory | High security lockdown imminent 10173 | -6/Factory | Core integrity fell below 50% 10207 | -6/Factory | Destroyed 12 combat bots 10210 | -6/Factory | Lost 17 parts (2p5n4u6w) 10230 | -6/Factory | High security lockdown engaged 10276 | -6/Factory | Found Prototype Processor 10280 | -6/Factory | Identified Exp. Terrain Scan Processor 10307 | -6/Factory | Core integrity fell below 20% 10310 | -6/Factory | Destroyed by G-50 Soldier with Heavy Laser Last Messages --------------- 10292_ The unstable cave ceiling collapses. 10292_ Helical Railgun severed. 10293_ Kicked G-50 Soldier. 10296_ Critical hit (Burn: +50). 10296_ Critical hit (Burn: +37). 10299_ Acquired 153 matter. 10301_ Hvy. Tesla Rifle destroyed. 10302_ Helical Railgun destroyed. 10303_ Cld. Ion Engine destroyed. 10304_ Mni. Grenade Launcher destroyed. 10304_ Destroyed Mni. Grenade Launcher. 10305_ Kinecellerator destroyed. 10305_ Cld. Ion Engine destroyed. 10306_ Multireflex Exoskeleton destroyed. 10307_ G-50 Soldier destroyed. 10307_ Missile Launcher destroyed. 10307_ Destroyed Missile Launcher. 10308_ Gravity Neutralizer destroyed. 10308_ Core Analyzer destroyed. 10309_ Identified Cld. Proton Cannon. Map ----- +----------------------------------------------------+ | ?????????????????????????????????????????????????? | | ?????????????????????????????????????????????????? | | ?????????????????????????????????????????????????? | | ?????????????????????????????????????????????????? | | ?????????????????????????????????????????????????? | | ?????????????????????????????????????????????????? | | ?????????????????????????????????????????????????? | | ?????????????????????????????????????????????????? | | ?????????????????????????????????????????????????? | | ?????????????????????????????????????????????????? | | ?????????????????????????????????????????????????? | | ?????????????????????????????????????????????????? | | ???????????????????#######??##???????????????????? | | ???????????????????# ? #???????????????????? | | ???????????????????# #???????????????????? | | ???????????????????# #???????????????????? | | ???????????????????# #???????????????????? | | ???????????????????# """ #???????????????????? | | ?????????????"?????# """"" #???????????????????? | | ?????????????"""???# """"" #???????????????????? | | ??????????????? ??# =! #???????????????????? | | ????????#########+## %[ ######??????????????? | | ??????? [ = gg=%== T??????????? | | ??????? =[ [ [g ###????????????????? | | ?????? *! [ [%! ###???????????????? | | ?????? ![[ @g% #?????????????# + | | ?????? [lg[= ###????????????? | | ????????##############[ [[ ##??????????????# | | ??????????????????# []] * #??????????????# | | ?????????????????## %!=! #??????????????+ | | ?????????????????# * #??????????????# | | ????????????????## #??????????????# | | ????????????????# # ! #????????????? | | ?????????????##### =%[ #????????????# | | ?????????????# #??????????? | | ?????????????# ## # % ### #????####### # | | ???????????????# #?##????# | | ???????????????# # ! #???????# | | ???????????????## !%= #???????# | | ????????????????# = * % ######### | | ????????????????# ##+####;;##""## # # # # | | ??????????????? !## # % # #### | | ????????????? ?# # # # | | ??????????? ??#?#### ! # | | ?????????? = ???????# * # | | ??????????? ????????# =% # | | ???????????? ?????????# ! # | | ????????????????????????# # | | ????????????????????????# ## ######## | | ????????????????????????# # ??# " | +----------------------------------------------------+ Best States ------------- Heat Dissipation 37 Energy Generation 25 Energy Capacity 470 Matter Stores 300 Matter Capacity 300 Sight Range 20 Terrain Scan Density 1010 Armor Coverage 450 Propulsion Shielding 33 Weapon Shielding 66 Evasion (%) 55 Targeting Accuracy 8 Core Analysis 6 Recoil Reduction 4 Kinecelleration 30 Offensive Hacking 20 Authchip Count 5 Item Schematics ----------------- Beam Cannon | -10/Materials | Hacked Robot Schematics ------------------ D-53 Grenadier | -8/Recycling | Hacked Fabricated ------------ D-53 Grenadier | x1 | -6/Factory | Authchip D-53 Grenadier | x1 | -6/Factory | Authchip D-53 Grenadier | x1 | -6/Factory | Authchip D-53 Grenadier | x1 | -6/Factory | Authchip D-53 Grenadier | x1 | -6/Factory | Authchip Repaired ---------- Imp. EM Pulse Cannon | 5% | -8/Storage Imp. Weapon Shielding | 38% | -8/Storage Studied --------- Lgt. Treads | -8/Materials | Hacked Alien Tech Used ----------------- None Achievements -------------- None Challenges ------------ None Game ------ Seed DirectedBattleWarhead Manual? 0 Play Time 00:50:28 Cumulative 1221.8 hours Start 2025.11.18 @ 15:39:26 End 2025.11.18 @ 16:37:59 Sessions 1 Manual Loads 0 Difficulty Rogue Special Mode None Game No. 1502 Rogue 1218 Adventurer 124 Explorer 160 Win Type - Total 57 Types 43/0/8/4/1/0/0/1/0/0 Lore% 92 Gallery% 86 Achievement% 64 Wizard Run 0 Options --------- Layout 0 ASCII 0 Keyboard 1 Movement Numpad Keybinds 0 Fullscreen 2 Font 18/X11 Map View 76x50 Zoom Use 4% Tactical HUD 1 Map Filters NONE Filters NONE Steam 1 RUN: fd9f7fc9-6bc6-4c25-ab08-d34dc9e7a054